bitfinex/quotes_BTCUSD_20240715
["timestamp","ask_amount","ask_price","bid_price","bid_amount"]
[1721018159645,0.09484896,62650.0,62649.0,1.15857822]
[1721018159865,0.33490876,62650.0,62649.0,1.15857822]
[1721018160071,0.007,62650.0,62649.0,1.15857822]
[1721018160663,0.07129175,62655.0,62649.0,1.15857822]
[1721018160664,0.04617985,62655.0,62654.0,0.430938]
[1721018160869,0.04617985,62655.0,62654.0,0.72596479]
[1721018161657,0.12455198,62655.0,62654.0,0.00773479]
[1721018161813,0.10336652,62655.0,62654.0,0.43767279]
[1721018162017,0.10336652,62655.0,62654.0,1.44384879]
[1721018162018,0.02499439,62655.0,62654.0,1.44384879]
[1721018162227,0.07920213,62663.0,62662.0,0.430882]
[1721018162426,0.10419477,62663.0,62662.0,0.43717887]
[1721018163165,0.10419477,62663.0,62662.0,0.43617887]
[1721018163439,0.02582264,62663.0,62662.0,0.43517887]
[1721018165078,0.02582264,62663.0,62662.0,0.86673387]
[1721018165280,0.02582264,62663.0,62662.0,1.15398887]
[1721018165281,0.00083,62663.0,62662.0,1.15398887]
[1721018165599,0.00083,62663.0,62662.0,1.45733587]
[1721018166375,0.00083,62663.0,62662.0,1.65333587]
[1721018166600,0.00083,62663.0,62662.0,2.15333587]
[1721018166798,0.00183,62663.0,62662.0,1.96433587]
[1721018167404,0.00183,62663.0,62662.0,1.9696093]
[1721018167997,0.00283,62663.0,62662.0,1.9756093]
[1721018168201,0.00183,62663.0,62662.0,1.9646093]
[1721018168374,0.00283,62663.0,62662.0,1.9786093]
[1721018168609,0.00283,62663.0,62662.0,1.9726093]
[1721018168610,0.00183,62663.0,62662.0,1.9726093]
[1721018168809,0.00083,62663.0,62662.0,1.9586093]
[1721018169364,0.00183,62663.0,62662.0,1.9726093]
[1721018169578,0.00283,62663.0,62662.0,1.9866093]
[1721018170715,0.00283,62663.0,62662.0,2.1866093]
[1721018170939,0.00283,62663.0,62662.0,2.2866093]
[1721018171192,0.00183,62663.0,62662.0,2.2726093]
[1721018171427,0.00083,62663.0,62662.0,2.0586093]
[1721018171684,0.00183,62663.0,62662.0,2.2706093]
[1721018171906,0.00183,62663.0,62662.0,2.2846093]
[1721018172142,0.00083,62663.0,62662.0,2.0586093]
[1721018172400,0.00083,62663.0,62662.0,2.0716093]
[1721018172401,0.00183,62663.0,62662.0,2.0716093]
[1721018172623,0.00183,62663.0,62662.0,2.0856093]
[1721018172838,0.00083,62663.0,62662.0,2.0586093]
[1721018173057,0.00083,62663.0,62662.0,2.0726093]
[1721018173285,0.00183,62663.0,62662.0,2.0856093]
[1721018173516,0.00183,62663.0,62662.0,2.2856093]
[1721018173783,0.00183,62663.0,62662.0,1.4856093]
[1721018174005,0.00183,62663.0,62662.0,1.1983543]
[1721018174456,0.00183,62663.0,62662.0,1.6983543]
[1721018175114,0.00183,62663.0,62662.0,1.69430457]
[1721018175551,0.00183,62663.0,62662.0,1.18221257]
[1721018176232,0.00183,62663.0,62662.0,1.19430457]
[1721018176954,0.00183,62663.0,62662.0,1.25829357]
[1721018179544,0.00183,62663.0,62662.0,0.52739157]
[1721018180017,0.00183,62663.0,62662.0,0.03652057]
[1721018180018,0.22382713,62663.0,62662.0,0.03652057]
[1721018180254,1.22028405,62663.0,62662.0,0.03652057]
[1721018180468,1.60753405,62663.0,62662.0,0.027]
[1721018180675,1.77514797,62663.0,62662.0,0.027]
[1721018181094,1.79185438,62663.0,62662.0,0.027]
[1721018181302,0.85658913,62655.0,62654.0,0.000913]
[1721018181517,1.76884697,62655.0,62654.0,0.01050053]
[1721018181731,1.63897199,62655.0,62654.0,0.000913]
[1721018181943,1.77099418,62655.0,62654.0,0.000913]
[1721018182967,1.77099418,62655.0,62654.0,0.001913]
[1721018183178,2.55211219,62655.0,62654.0,0.001]
[1721018183386,2.48128118,62655.0,62654.0,0.001]
[1721018184014,1.113493,62650.0,62649.0,0.000913]
[1721018184233,1.64177518,62650.0,62649.0,0.000913]
[1721018184439,1.64177518,62650.0,62649.0,0.01051153]
[1721018184653,1.64177518,62650.0,62649.0,0.000913]
[1721018185067,1.642632,62650.0,62649.0,0.000913]
[1721018185304,1.585632,62650.0,62649.0,0.000913]
[1721018185508,1.482632,62650.0,62649.0,0.000913]
[1721018185720,1.482632,62650.0,62649.0,0.14457]
[1721018185721,0.16487487,62650.0,62649.0,0.14457]
[1721018185941,0.06180851,62650.0,62649.0,0.44148353]
[1721018186152,0.06180851,62650.0,62649.0,0.72879853]
[1721018186361,0.006,62650.0,62649.0,1.02820553]
[1721018186588,0.006,62650.0,62649.0,1.16151353]
[1721018187225,0.00206353,62662.0,62652.0,0.012092]
[1721018187429,0.01753641,62663.0,62662.0,0.143627]
[1721018187631,0.01753641,62663.0,62660.0,0.430892]
[1721018187834,0.06622555,62663.0,62662.0,0.00071081]
[1721018188063,0.06622555,62663.0,62661.0,0.15184201]
[1721018188292,0.01753641,62663.0,62662.0,0.00721081]
[1721018188485,0.06620987,62663.0,62662.0,0.00721081]
[1721018188693,0.0660183,62663.0,62662.0,0.00721081]
[1721018188896,0.0710183,62663.0,62662.0,0.15083781]
[1721018189151,0.0710183,62663.0,62662.0,0.00721081]
[1721018189152,0.0700183,62663.0,62662.0,0.00721081]
[1721018189567,0.0700183,62663.0,62661.0,0.143629]
[1721018189739,0.04867396,62662.0,62661.0,0.143629]
[1721018190313,0.07837213,62661.0,62652.0,0.001]
[1721018190520,0.07837213,62655.0,62654.0,0.143644]
[1721018190723,0.07837213,62655.0,62652.0,0.143648]
[1721018190724,0.07837213,62653.0,62652.0,0.143648]
[1721018190934,0.04867396,62653.0,62652.0,0.143648]
[1721018191140,0.12700233,62654.0,62653.0,0.143648]
[1721018191349,0.12675799,62654.0,62653.0,0.143648]
[1721018191547,0.04838586,62654.0,62653.0,0.430944]
[1721018191964,0.04838586,62654.0,62653.0,0.429944]
[1721018192191,0.04838188,62657.0,62655.0,0.143643]
[1721018192409,0.07837213,62653.0,62652.0,0.009]
[1721018192619,0.50933713,62650.0,62649.0,0.000913]
[1721018192834,0.27058732,62650.0,62649.0,0.000913]
[1721018193044,0.04856019,62650.0,62649.0,0.000913]
[1721018193677,0.12693232,62650.0,62649.0,0.000913]
[1721018193886,0.27058732,62650.0,62649.0,0.000913]
[1721018194149,0.55789732,62650.0,62649.0,0.000913]
[1721018194340,0.84520732,62650.0,62649.0,0.000913]
[1721018194559,0.79664713,62650.0,62649.0,0.000913]
[1721018194770,0.84567536,62650.0,62649.0,0.006913]
[1721018194973,0.84467536,62650.0,62649.0,0.000913]
[1721018195180,0.84467536,62650.0,62649.0,0.005913]
[1721018195181,0.55736536,62650.0,62649.0,0.005913]
[1721018195422,0.55836536,62650.0,62649.0,0.011913]
[1721018195590,0.27105536,62650.0,62649.0,0.011913]
[1721018196005,0.84567536,62650.0,62649.0,0.011913]
[1721018196420,0.94567536,62650.0,62649.0,0.011913]
[1721018197525,1.10779327,62650.0,62649.0,0.011913]
[1721018197745,0.94567536,62650.0,62649.0,0.011913]
[1721018197976,0.94601101,62650.0,62649.0,0.011913]
[1721018198201,1.03950069,62650.0,62649.0,0.011913]
[1721018198422,1.09823421,62650.0,62649.0,0.011913]
[1721018198641,1.12323453,62650.0,62649.0,0.011913]
[1721018199345,1.09823421,62650.0,62649.0,0.011913]
[1721018199551,1.38554421,62650.0,62649.0,0.011913]
[1721018199753,1.55864484,62650.0,62649.0,0.011913]
[1721018200674,1.49764484,62650.0,62649.0,0.005913]
[1721018201115,1.50506346,62650.0,62649.0,0.001913]
[1721018201332,1.46713884,62650.0,62649.0,0.002913]
[1721018201545,1.56806387,62650.0,62649.0,0.001913]
[1721018201867,1.56806387,62650.0,62649.0,0.002913]
[1721018201868,1.58695488,62650.0,62649.0,0.002913]
[1721018202090,1.58695488,62650.0,62649.0,0.001913]
[1721018202232,1.50606387,62650.0,62649.0,0.000913]
[1721018202460,1.51606387,62650.0,62649.0,0.001913]
[1721018203075,1.57606387,62650.0,62649.0,0.001913]
[1721018203298,1.74518178,62650.0,62649.0,0.002913]
[1721018203594,1.28301231,62650.0,62649.0,0.002913]
[1721018204031,1.63032231,62650.0,62649.0,0.002913]
[1721018204247,1.71932231,62650.0,62649.0,0.001913]
[1721018204469,1.58406387,62650.0,62649.0,0.002913]
[1721018204688,1.52406387,62650.0,62649.0,0.002913]
[1721018204876,1.2840185,62650.0,62649.0,0.002913]
[1721018205086,0.51847887,62650.0,62649.0,0.002913]
[1721018205297,0.66213387,62650.0,62649.0,0.002913]
[1721018205518,0.92444324,62650.0,62649.0,0.002913]
[1721018205729,0.91244324,62650.0,62649.0,0.001913]
[1721018205928,0.62513324,62650.0,62649.0,0.001913]
[1721018206141,0.63513324,62650.0,62649.0,0.002913]
[1721018206311,0.65213335,62650.0,62649.0,0.002913]
[1721018206550,0.65213335,62650.0,62649.0,0.001913]
[1721018206551,0.64513335,62650.0,62649.0,0.001913]
[1721018206758,0.64913335,62650.0,62649.0,0.001913]
[1721018207417,0.63913335,62650.0,62649.0,0.000913]
[1721018207679,0.64176965,62650.0,62649.0,0.000913]
[1721018207879,0.64976965,62650.0,62649.0,0.001913]
[1721018208375,0.14580452,62650.0,62649.0,0.7202]
[1721018208588,0.06126748,62650.0,62649.0,0.7202]
[1721018209007,0.06126748,62650.0,62649.0,1.007515]
[1721018209209,0.06126748,62650.0,62649.0,1.085015]
[1721018209410,0.05326748,62650.0,62649.0,1.084015]
[1721018209614,0.04926748,62650.0,62649.0,1.084015]
[1721018209818,0.01670641,62653.0,62651.0,0.287305]
[1721018210046,0.01670641,62653.0,62652.0,0.431951]
[1721018210288,0.01670641,62653.0,62652.0,0.719252]
[1721018210522,0.22746386,62653.0,62652.0,0.430951]
[1721018210756,0.22746386,62653.0,62652.0,0.422951]
[1721018210974,0.22798662,62653.0,62652.0,0.422951]
[1721018211230,0.09407854,62653.0,62652.0,0.422951]
[1721018211467,0.22798889,62653.0,62652.0,0.422951]
[1721018211685,0.22798889,62653.0,62652.0,0.13565]
[1721018212111,0.23298889,62653.0,62652.0,0.13565]
[1721018212316,0.15561676,62653.0,62652.0,0.13565]
[1721018212546,0.15561676,62653.0,62652.0,0.13665]
[1721018212756,0.15161676,62653.0,62652.0,0.716252]
[1721018212968,0.15161676,62653.0,62652.0,0.710252]
[1721018212969,0.15061676,62653.0,62652.0,0.710252]
[1721018213201,0.06601258,62653.0,62652.0,0.422951]
[1721018213410,0.06701258,62653.0,62652.0,0.427951]
[1721018213623,0.06601258,62653.0,62652.0,0.287301]
[1721018213830,0.07737213,62651.0,62649.0,0.001913]
[1721018214050,0.07737213,62650.0,62649.0,0.14557]
[1721018214257,0.04931237,62650.0,62649.0,0.431885]
[1721018214644,0.04931237,62650.0,62649.0,0.288228]
[1721018214645,0.02499629,62650.0,62649.0,0.288228]
[1721018214861,0.07440196,62650.0,62649.0,0.288228]
[1721018215068,0.07440196,62650.0,62649.0,0.431885]
[1721018215297,0.04940567,62650.0,62649.0,0.431885]
[1721018215482,0.12672098,62650.0,62649.0,0.008913]
[1721018215692,0.04934885,62650.0,62649.0,0.15257]
[1721018215906,0.09507854,62653.0,62650.0,0.143653]
[1721018216112,0.15896511,62652.0,62650.0,0.143653]
[1721018216327,0.15896511,62651.0,62650.0,0.142653]
[1721018217376,0.07424688,62651.0,62650.0,0.140653]
[1721018217581,0.07424688,62651.0,62650.0,0.141653]
[1721018217582,0.15877896,62651.0,62650.0,0.141653]
[1721018217797,0.15877896,62651.0,62650.0,0.145653]
[1721018218013,0.15977896,62651.0,62650.0,0.145653]
[1721018218463,0.15977896,62651.0,62650.0,0.012]
[1721018218464,0.66910809,62651.0,62650.0,0.012]
[1721018219261,0.66910809,62651.0,62650.0,0.007]
[1721018219262,0.66810809,62651.0,62650.0,0.007]
[1721018219462,0.143655,62650.0,62649.0,0.000913]
[1721018219710,0.38186962,62650.0,62649.0,0.000913]
[1721018220117,0.37980609,62650.0,62649.0,0.000913]
[1721018220330,0.95442609,62650.0,62649.0,0.000913]
[1721018220542,1.20795291,62650.0,62649.0,0.0117112]
[1721018220758,1.41423931,62650.0,62649.0,0.008913]
[1721018220986,1.25844566,62650.0,62649.0,0.008913]
[1721018221195,1.41421045,62650.0,62649.0,0.008913]
[1721018221617,1.40317793,62650.0,62649.0,0.008913]
[1721018222022,1.412889,62650.0,62649.0,0.008913]
[1721018222244,1.53127654,62650.0,62649.0,0.008913]
[1721018222448,1.41076988,62650.0,62649.0,0.016913]
[1721018222995,1.47166988,62650.0,62649.0,0.016913]
[1721018223199,1.47217934,62650.0,62649.0,0.016913]
[1721018223418,1.56689562,62650.0,62649.0,0.016913]
[1721018223643,1.39799155,62650.0,62649.0,0.016913]
[1721018223844,1.41189444,62650.0,62649.0,0.016913]
[1721018225224,1.12458444,62650.0,62649.0,0.016913]
[1721018225627,1.21939055,62650.0,62649.0,0.016913]
[1721018226084,1.06368444,62650.0,62649.0,0.016913]
[1721018226296,1.06301549,62650.0,62649.0,0.016913]
[1721018226507,1.0630164,62650.0,62649.0,0.016913]
[1721018226714,0.3447414,62650.0,62649.0,0.016913]
[1721018226908,0.60691001,62650.0,62649.0,0.02452406]
[1721018227115,1.18153001,62650.0,62649.0,0.02452406]
[1721018227351,1.18153001,62650.0,62649.0,0.016913]
[1721018227555,1.18156042,62650.0,62649.0,0.016913]
[1721018227773,0.89425042,62650.0,62649.0,0.016913]
[1721018228394,1.18156042,62650.0,62649.0,0.016913]
[1721018228594,1.4103264,62650.0,62649.0,0.016913]
[1721018229716,1.27866398,62650.0,62649.0,0.016913]
[1721018229938,1.40991103,62650.0,62649.0,0.016913]
[1721018230322,1.83792103,62650.0,62649.0,0.016913]
[1721018230580,1.49061103,62650.0,62649.0,0.016913]
[1721018230783,0.34432603,62650.0,62649.0,0.016913]
[1721018231198,0.77529103,62650.0,62649.0,0.02491808]
[1721018231412,1.06260103,62650.0,62649.0,0.02491808]
[1721018231591,1.06260103,62650.0,62649.0,0.008913]
[1721018231851,0.1669539,62650.0,62649.0,0.013913]
[1721018232066,0.20471265,62650.0,62649.0,0.589885]
[1721018232275,0.20471265,62650.0,62649.0,0.88929708]
[1721018232276,0.07296978,62650.0,62649.0,0.88929708]
[1721018232528,0.047974,62650.0,62649.0,1.37661208]
[1721018232726,0.048974,62650.0,62649.0,1.38161208]
[1721018232935,0.04934683,62650.0,62649.0,1.37661208]
[1721018233147,0.04934683,62650.0,62649.0,1.17661208]
[1721018233351,0.04908399,62650.0,62649.0,1.37961208]
[1721018233806,0.05008399,62650.0,62649.0,1.38361208]
[1721018234160,0.05008399,62650.0,62649.0,1.38461208]
[1721018234540,0.04808399,62650.0,62649.0,1.37261208]
[1721018234744,0.04747196,62658.0,62654.0,0.143646]
[1721018234947,0.07120795,62660.0,62649.0,0.159913]
[1721018234948,0.12606435,62655.0,62649.0,0.159913]
[1721018235142,0.12606435,62655.0,62653.0,0.143648]
[1721018235143,0.04786222,62654.0,62653.0,0.143648]
[1721018235551,0.07737213,62650.0,62644.0,1.75095201]
[1721018235752,0.07737213,62650.0,62644.0,2.18195501]
[1721018235753,0.04785759,62649.0,62644.0,2.18195501]
[1721018235958,0.04796064,62648.0,62644.0,2.03828801]
[1721018236157,0.04796064,62648.0,62647.0,0.143662]
[1721018236427,0.04745585,62651.0,62650.0,0.143655]
[1721018236775,0.04745585,62651.0,62650.0,0.142655]
[1721018236990,0.04745585,62651.0,62648.0,0.143659]
[1721018236991,0.07737213,62649.0,62648.0,0.143659]
[1721018237179,0.17277536,62649.0,62648.0,0.143659]
[1721018237435,0.09540323,62649.0,62648.0,0.142659]
[1721018237648,0.04795683,62649.0,62648.0,0.429978]
[1721018238055,0.04895683,62649.0,62648.0,0.429978]
[1721018238209,0.12632896,62649.0,62648.0,0.429978]
[1721018238435,0.07942096,62649.0,62648.0,0.440978]
[1721018238643,0.04895683,62649.0,62648.0,0.153659]
[1721018238843,0.04895683,62649.0,62648.0,0.440978]
[1721018239002,0.04995683,62649.0,62648.0,0.447978]
[1721018239200,0.07937213,62649.0,62648.0,0.160659]
[1721018239418,0.17360037,62649.0,62648.0,0.153659]
[1721018239632,0.2342456,62649.0,62648.0,0.153659]
[1721018240292,0.07737213,62647.0,62646.0,0.143662]
[1721018240505,0.19759516,62647.0,62646.0,0.143662]
[1721018240925,0.12514455,62647.0,62646.0,0.143662]
[1721018241199,0.19759517,62647.0,62646.0,0.143662]
[1721018241396,0.07737213,62646.0,62645.0,0.143666]
[1721018241626,0.12514455,62646.0,62645.0,0.143666]
[1721018241752,0.19759537,62646.0,62645.0,0.143666]
[1721018242351,0.26219537,62646.0,62645.0,0.143666]
[1721018242536,0.07737213,62645.0,62644.0,1.75095201]
[1721018242740,0.17259835,62645.0,62644.0,1.75095201]
[1721018242977,0.10236957,62645.0,62644.0,1.75095201]
[1721018243178,0.19706072,62645.0,62644.0,1.75095201]
[1721018244857,0.11968859,62645.0,62644.0,1.89462001]
[1721018245134,0.12068859,62645.0,62644.0,1.90662001]
[1721018245354,0.12168859,62645.0,62644.0,1.91762001]
[1721018245560,0.12195387,62645.0,62644.0,1.91762001]
[1721018245797,0.02699744,62645.0,62644.0,1.91762001]
[1721018246059,0.07442492,62645.0,62644.0,1.91762001]
[1721018246233,0.12193598,62645.0,62644.0,1.91762001]
[1721018246471,0.15728764,62645.0,62644.0,1.91762001]
[1721018246699,0.12193856,62645.0,62644.0,1.91762001]
[1721018246894,0.10976899,62645.0,62644.0,1.91762001]
[1721018247146,0.0745085,62645.0,62644.0,1.91762001]
[1721018247375,0.12193739,62645.0,62644.0,1.91762001]
[1721018248280,0.0745085,62645.0,62644.0,1.91762001]
[1721018248503,0.22816884,62645.0,62644.0,1.77395201]
[1721018248746,0.22816884,62645.0,62644.0,1.91762001]
[1721018248966,0.2279762,62645.0,62644.0,1.91762001]
[1721018249209,0.1451328,62645.0,62644.0,1.91762001]
[1721018249453,0.22766533,62645.0,62644.0,1.91762001]
[1721018249695,0.1451328,62645.0,62644.0,1.91762001]
[1721018249931,0.22766904,62645.0,62644.0,1.91762001]
[1721018250607,0.23389995,62645.0,62644.0,1.91762001]
[1721018250837,0.15652782,62645.0,62644.0,1.91762001]
[1721018251279,0.22753888,62645.0,62644.0,1.91762001]
[1721018251507,0.14517306,62645.0,62644.0,1.91762001]
[1721018251937,0.23372887,62645.0,62644.0,1.91762001]
[1721018252150,0.22254438,62645.0,62644.0,1.77395201]
[1721018252435,0.09798089,62645.0,62644.0,1.77395201]
[1721018252665,0.02680533,62645.0,62644.0,1.77395201]
[1721018253337,0.15618132,62645.0,62644.0,1.77395201]
[1721018253701,0.22736282,62645.0,62644.0,1.67395201]
[1721018253936,0.23042635,62645.0,62644.0,1.67395201]
[1721018255188,0.07688682,62645.0,62644.0,1.81762001]
[1721018255416,0.04901796,62645.0,62644.0,2.40438601]
[1721018255652,0.20294842,62645.0,62644.0,2.10495701]
[1721018255860,0.22794609,62645.0,62644.0,2.10495701]
[1721018257837,0.15675661,62645.0,62644.0,2.10495701]
[1721018258266,0.22797893,62645.0,62644.0,2.10495701]
[1721018258960,0.02699767,62645.0,62644.0,2.10495701]
[1721018259179,0.0982098,62645.0,62644.0,2.10495701]
[1721018259397,0.22843233,62645.0,62644.0,2.10495701]
[1721018260326,0.1572202,62645.0,62644.0,2.10495701]
[1721018260742,0.25216971,62645.0,62644.0,2.10495701]
[1721018262224,0.02699767,62645.0,62644.0,2.10495701]
[1721018262434,0.16939061,62645.0,62644.0,2.10495701]
[1721018262643,0.15714144,62645.0,62644.0,2.10495701]
[1721018264638,0.15714144,62645.0,62644.0,2.00495701]
[1721018265478,0.15763566,62645.0,62644.0,2.00495701]
[1721018265689,0.25264625,62645.0,62644.0,2.00495701]
[1721018266366,0.15763566,62645.0,62644.0,2.00495701]
[1721018266578,0.25264625,62645.0,62644.0,2.01704901]
[1721018266772,0.15763566,62645.0,62644.0,2.00495701]
[1721018266977,0.25264625,62645.0,62644.0,2.01704901]
[1721018267597,0.25264625,62645.0,62644.0,2.00495701]
[1721018267806,0.15763566,62645.0,62644.0,2.01704901]
[1721018268508,0.25264625,62645.0,62644.0,2.01704901]
[1721018268720,0.15763566,62645.0,62644.0,2.01704901]
[1721018268926,0.25266838,62645.0,62644.0,2.01704901]
[1721018269134,0.25266838,62645.0,62644.0,2.00495701]
[1721018269515,0.25266838,62645.0,62644.0,2.01704901]
[1721018270773,0.25266838,62645.0,62644.0,3.40682301]
[1721018270774,0.15763566,62645.0,62644.0,3.40682301]
[1721018270983,0.0496458,62645.0,62644.0,4.16616001]
[1721018271469,0.002,62645.0,62644.0,4.16616001]
[1721018271885,0.002,62645.0,62644.0,4.45349701]
[1721018272093,0.00083,62650.0,62649.0,1.971209]
[1721018272300,0.00083,62650.0,62649.0,1.994209]
[1721018272524,0.00083,62650.0,62649.0,2.093209]
[1721018273162,0.00083,62650.0,62649.0,2.092209]
[1721018274588,0.00083,62650.0,62649.0,2.106209]
[1721018274964,0.00083,62650.0,62649.0,2.020209]
[1721018275607,0.00083,62650.0,62649.0,1.920209]
[1721018278804,0.00083,62650.0,62649.0,1.9298525]
[1721018284419,0.00083,62650.0,62649.0,1.9158525]
[1721018284698,0.00063793,62663.0,62654.0,1.665014]
[1721018284807,0.00063793,62663.0,62654.0,2.42465838]
[1721018285009,0.00063793,62663.0,62662.0,1.645929]
[1721018285209,0.00063793,62663.0,62662.0,2.343439]
[1721018285659,0.00063793,62663.0,62662.0,2.630694]
[1721018285867,0.00063793,62663.0,62662.0,2.543439]
[1721018286067,0.00063793,62663.0,62662.0,2.343439]
[1721018286452,0.00063793,62663.0,62662.0,2.357439]
[1721018287542,0.00063793,62663.0,62662.0,2.676609]
[1721018288341,0.00063793,62663.0,62662.0,2.690609]
[1721018290800,0.00063793,62663.0,62662.0,2.07210577]
[1721018291044,0.00063793,62663.0,62662.0,1.562654]
[1721018291536,0.00063793,62663.0,62662.0,2.048654]
[1721018291720,0.00063793,62663.0,62662.0,1.434654]
[1721018291940,0.00063793,62663.0,62662.0,0.788144]
[1721018292135,0.06133793,62663.0,62662.0,1.075399]
[1721018292713,0.06133793,62663.0,62662.0,1.061399]
[1721018293073,0.06133793,62663.0,62662.0,1.065307]
[1721018293278,0.13953793,62663.0,62662.0,0.490797]
[1721018293518,0.1870251,62663.0,62662.0,0.490797]
[1721018293730,0.1870251,62663.0,62662.0,1.561399]
[1721018293946,0.10883539,62663.0,62662.0,1.561399]
[1721018294151,0.00063793,62663.0,62662.0,1.862654]
[1721018294636,0.00063793,62663.0,62662.0,1.834654]
[1721018294812,0.00063793,62663.0,62662.0,1.847654]
[1721018295225,0.00063793,62663.0,62662.0,1.861654]
[1721018295429,0.04851343,62663.0,62662.0,1.037307]
[1721018295834,0.04851343,62663.0,62662.0,1.051307]
[1721018296051,0.61041056,62663.0,62662.0,0.397162]
[1721018296272,0.61141056,62663.0,62662.0,0.411162]
[1721018296483,0.61141056,62663.0,62662.0,0.34717]
[1721018297157,0.89866056,62663.0,62662.0,0.34717]
[1721018297347,0.89880726,62663.0,62662.0,0.34717]
[1721018298007,1.55687915,62663.0,62662.0,0.34717]
[1721018298212,1.64187287,62663.0,62662.0,0.34717]
[1721018298612,1.64187287,62663.0,62662.0,0.28057]
[1721018298872,1.64087287,62663.0,62662.0,0.26657]
[1721018299082,1.64087287,62663.0,62662.0,0.25257]
[1721018299286,1.64187287,62663.0,62662.0,0.26257]
[1721018299493,1.64187287,62663.0,62662.0,0.26657]
[1721018299857,1.64187287,62663.0,62662.0,0.26257]
[1721018300368,1.51027878,62663.0,62662.0,0.26257]
[1721018300565,1.92913485,62663.0,62662.0,0.26257]
[1721018300769,0.71032313,62652.0,62651.0,0.4761]
[1721018300975,0.98662635,62652.0,62651.0,0.4761]
[1721018301197,1.27392735,62652.0,62651.0,0.4761]
[1721018301995,1.27392735,62652.0,62651.0,0.4771]
[1721018302282,1.27392735,62652.0,62651.0,0.4821]
[1721018302509,1.29892512,62652.0,62651.0,0.001]
[1721018302752,1.29892512,62652.0,62644.0,1.55186501]
[1721018302753,0.27937213,62645.0,62644.0,1.55186501]
[1721018302899,0.3275188,62645.0,62644.0,1.55186501]
[1721018303732,0.27937213,62645.0,62644.0,1.55186501]
[1721018303905,0.32762666,62645.0,62644.0,1.55186501]
[1721018304135,0.04825452,62645.0,62644.0,1.69553201]
[1721018304507,0.2,62645.0,62644.0,1.69553201]
[1721018304765,0.04825452,62645.0,62644.0,1.69553201]
[1721018304966,0.2,62649.0,62644.0,1.99186801]
[1721018305159,0.001,62645.0,62644.0,2.00586801]
[1721018305518,0.04846205,62645.0,62644.0,1.98286801]
[1721018305809,0.04846205,62646.0,62644.0,1.98286801]
[1721018305989,0.001,62645.0,62644.0,1.99286801]
[1721018306228,0.04946205,62645.0,62644.0,2.00686801]
[1721018306694,0.04946205,62645.0,62644.0,2.01696001]
[1721018306868,0.04946205,62645.0,62644.0,2.00686801]
[1721018307022,0.04974624,62645.0,62644.0,2.00686801]
[1721018308318,0.04874624,62645.0,62644.0,1.98286801]
[1721018308491,0.04974624,62645.0,62644.0,1.99386801]
[1721018308719,0.04974624,62645.0,62644.0,2.00786801]
[1721018308993,0.04955413,62645.0,62644.0,2.00786801]
[1721018309428,0.04955413,62645.0,62644.0,1.72053101]
[1721018310212,0.001,62645.0,62644.0,1.72053101]
[1721018311630,0.001,62645.0,62644.0,2.66863401]
[1721018312028,0.001,62645.0,62644.0,2.38129701]
[1721018312429,0.001,62645.0,62644.0,2.30529701]
[1721018312661,0.001,62645.0,62644.0,2.29520501]
[1721018313123,0.001,62645.0,62644.0,2.28120501]
[1721018313291,0.001,62645.0,62644.0,2.29520501]
[1721018313710,0.2753,62647.0,62646.0,0.143664]
[1721018313942,0.33162241,62647.0,62646.0,0.143664]
[1721018314126,0.33162241,62647.0,62644.0,1.86520201]
[1721018314127,0.27937213,62645.0,62644.0,1.57786501]
[1721018314370,0.85397113,62645.0,62644.0,1.57786501]
[1721018314552,1.29594191,62645.0,62644.0,1.57786501]
[1721018314767,1.29594191,62645.0,62644.0,1.55186501]
[1721018315319,1.24859958,62645.0,62644.0,1.55186501]
[1721018315555,1.53593258,62645.0,62644.0,1.55186501]
[1721018315730,1.53793258,62645.0,62644.0,1.55186501]
[1721018316437,1.43063713,62645.0,62644.0,1.55186501]
[1721018316618,1.51230604,62645.0,62644.0,1.55186501]
[1721018317675,1.51930604,62645.0,62644.0,1.55286501]
[1721018319030,1.56571776,62645.0,62644.0,1.55286501]
[1721018319521,1.56371776,62645.0,62644.0,1.55286501]
[1721018319938,1.56578829,62645.0,62644.0,1.55286501]
[1721018320137,1.55878829,62645.0,62644.0,1.55186501]
[1721018320359,1.55878829,62645.0,62644.0,1.55286501]
[1721018320567,0.47835314,62645.0,62644.0,1.55286501]
[1721018320797,0.90935214,62645.0,62644.0,1.55286501]
[1721018321111,0.61501914,62645.0,62644.0,1.55186501]
[1721018321324,0.62001914,62645.0,62644.0,1.55286501]
[1721018321741,0.62201914,62645.0,62644.0,1.55286501]
[1721018321985,0.61301914,62645.0,62644.0,1.55186501]
[1721018322187,0.90035214,62645.0,62644.0,1.55186501]
[1721018322426,0.90035214,62645.0,62644.0,1.55386501]
[1721018322636,0.90035214,62645.0,62644.0,1.55186501]
[1721018323165,0.90035214,62645.0,62644.0,1.55486501]
[1721018323372,0.98139795,62645.0,62644.0,1.55486501]
[1721018323578,0.90335214,62645.0,62644.0,1.55486501]
[1721018323993,0.90035214,62645.0,62644.0,1.55486501]
[1721018324408,0.98343246,62645.0,62644.0,1.55486501]
[1721018326449,0.9829021,62645.0,62644.0,1.55486501]
[1721018327030,0.85597113,62645.0,62644.0,1.55486501]
[1721018327235,0.98280316,62645.0,62644.0,1.55486501]
[1721018327556,1.29513623,62645.0,62644.0,1.55486501]
[1721018327933,1.58246923,62645.0,62644.0,1.55486501]
[1721018328134,1.64246923,62645.0,62644.0,1.55486501]
[1721018328365,1.58246923,62645.0,62644.0,1.55486501]
[1721018328569,1.58146923,62645.0,62644.0,1.55486501]
[1721018328765,1.64146923,62645.0,62644.0,1.55486501]
[1721018329747,1.64102979,62645.0,62644.0,1.55486501]
[1721018331536,1.58102979,62645.0,62644.0,1.55486501]
[1721018331743,1.64102979,62645.0,62644.0,1.55486501]
[1721018333068,1.64062339,62645.0,62644.0,1.55486501]
[1721018336465,1.64043524,62645.0,62644.0,1.55486501]
[1721018338456,1.73163524,62645.0,62644.0,1.55486501]
[1721018339717,1.73152504,62645.0,62644.0,1.55486501]
[1721018340164,1.67153055,62645.0,62644.0,1.55486501]
[1721018340681,1.71898726,62645.0,62644.0,1.55486501]
[1721018341502,1.7426829,62645.0,62644.0,1.55486501]
[1721018341722,1.0853169,62645.0,62644.0,1.55486501]
[1721018342409,1.10962506,62645.0,62644.0,1.55486501]
[1721018342641,1.5893409,62645.0,62644.0,1.55486501]
[1721018342914,0.9234749,62645.0,62644.0,1.55486501]
[1721018343114,1.10969977,62645.0,62644.0,1.55486501]
[1721018343318,1.10969977,62645.0,62644.0,1.98587001]
[1721018343319,0.22448359,62645.0,62644.0,1.98587001]